[Event "EYCC Open U10 2021"]
[Site "Tornelo"]
[Date "2021.10.15"]
[Round "3.8"]
[White "Harutyunyan, Arman G."]
[Black "Oikonomopoulos, Filippos"]
[Result "0-1"]
[ECO "C00"]
[WhiteElo "1395"]
[BlackElo "1650"]
[Annotator "NA"]
[PlyCount "72"]
[EventDate "2021.10.15"]
[EventType "swiss"]
[EventCountry "NET"]
[SourceTitle "playchess.com"]
[Source "ChessBase"]
[SourceQuality "1"]
[TimeControl "5400+30"]

1. e4 {[%emt 0:00:30]} c5 {[%emt 0:00:37]} 2. f4 {[%emt 0:00:06]} e6 {[%emt 0:00:08]} 3. Nf3 {[%emt 0:00:06]} Nc6 {[%emt 0:00:47]} 4. g3 {[%emt 0:00:05]} d5 {[%emt 0:01:33]} 5. e5 {[%emt 0:00:04]} h5 {[%emt 0:01:25]} 6. h4 {[%emt 0:00:43]} Nh6 {[%emt 0:00:35]} 7. d3 {[%emt 0:01:49]} Nf5 {[%emt 0:00:15]} 8. Rg1 {[%emt 0:01:29]} Qb6 {[%emt 0:00:47]} 9. c3 {[%emt 0:02:30]} Be7 {[%emt 0:01:37]} 10. Bh3 {[%emt 0:01:34]} Bd7 {[%emt 0:17:20]} 11. Qe2 {[%emt 0:04:01]} Rc8 {[%emt 0:04:41]} 12. Kf2 {[%emt 0:02:26]} Na5 {[%emt 0:02:52]} 13. Bxf5 {[%emt 0:04:22]} exf5 {[%emt 0:00:11]} 14. Be3 {[%emt 0:00:06]} Qa6 {[%emt 0:06:08]} 15. Nbd2 {[%emt 0:06:38]} Bb5 {[%emt 0:03:35]} 16. Ne1 {[%emt 0:00:18]} c4 {[%emt 0:02:40]} 17. dxc4 {[%emt 0:02:08]} Bxc4 {[%emt 0:13:19]} 18. Nxc4 {[%emt 0:00:24]} Nxc4 {[%emt 0:00:18]} 19. Bd4 {[%emt 0:00:24]} Bc5 {[%emt 0:06:16]} 20. Nf3 {[%emt 0:00:14]} Qb6 {[%emt 0:00:58]} 21. Rab1 {[%emt 0:00:57]} O-O {[%emt 0:04:50]} 22. Rge1 {[%emt 0:01:59]} Rfe8 {[%emt 0:00:37]} 23. Kg2 {[%emt 0:01:35]} Nd6 {[%emt 0:03:33]} 24. Qd3 {[%emt 0:02:27]} Ne4 {[%emt 0:00:38]} 25. Re2 {[%emt 0:03:55]} Qg6 {[%emt 0:09:34]} 26. Ng5 {[%emt 0:02:43]} Bxd4 {[%emt 0:01:59]} 27. Qxd4 {[%emt 0:00:46]} Qa6 {[%emt 0:00:14]} 28. Rbe1 {[%emt 0:02:22]} Qxa2 {[%emt 0:02:34]} 29. Rd1 {[%emt 0:01:29]} Nxc3 {[%emt 0:00:31]} 30. Rdd2 {[%emt 0:02:40]} Nxe2 {[%emt 0:00:10]} 31. Rxe2 {[%emt 0:00:04]} Qc4 {[%emt 0:00:26]} 32. Qd2 {[%emt 0:00:10]} d4 {[%emt 0:00:44]} 33. Kh2 {[%emt 0:01:02]} d3 {[%emt 0:00:58]} 34. Re3 {[%emt 0:00:05]} Red8 {[%emt 0:00:52]} 35. e6 {[%emt 0:00:06]} fxe6 {[%emt 0:01:18]} 36. Nxe6 {[%emt 0:00:07]} Qc2 {[%emt 0:01:05]} 0-1

[Event "EYCC Open U10 2021"]
[Site "Tornelo"]
[Date "2021.10.15"]
[Round "3.9"]
[White "Golubovic, Erik"]
[Black "Demchenko, Maksim Dm"]
[Result "0-1"]
[ECO "C01"]
[WhiteElo "1323"]
[BlackElo "1615"]
[Annotator "NA"]
[PlyCount "42"]
[EventDate "2021.10.15"]
[EventType "swiss"]
[EventCountry "NET"]
[SourceTitle "playchess.com"]
[Source "ChessBase"]
[SourceQuality "1"]
[TimeControl "5400+30"]

1. e4 {[%emt 0:00:30]} e6 {[%emt 0:00:32]} 2. d4 {[%emt 0:00:08]} d5 {[%emt 0:00:02]} 3. exd5 {[%emt 0:00:29]} exd5 {[%emt 0:00:03]} 4. Nf3 {[%emt 0:00:49]} Nc6 {[%emt 0:00:04]} 5. Bb5 {[%emt 0:01:47]} Bd6 {[%emt 0:00:29]} 6. O-O {[%emt 0:00:31]} Nge7 {[%emt 0:00:12]} 7. c3 {[%emt 0:02:41]} O-O {[%emt 0:00:10]} 8. Re1 {[%emt 0:00:31]} Bg4 {[%emt 0:01:54]} 9. h3 {[%emt 0:00:27]} Bh5 {[%emt 0:00:05]} 10. Bg5 {[%emt 0:01:24]} f6 {[%emt 0:00:27]} 11. Bh4 {[%emt 0:03:15]} Qd7 {[%emt 0:01:41]} 12. Nbd2 {[%emt 0:01:17]} a6 {[%emt 0:08:25]} 13. Ba4 {[%emt 0:03:18]} Rae8 {[%emt 0:14:36]} 14. Bg3 {[%emt 0:08:14]} Bxg3 {[%emt 0:00:48]} 15. fxg3 {[%emt 0:00:06]} Qd6 {[%emt 0:02:54]} 16. g4 {[%emt 0:02:30]} Bf7 {[%emt 0:00:30]} 17. Bc2 {[%emt 0:02:25]} Ng6 {[%emt 0:00:56]} 18. g5 {[%emt 0:05:58]} Nf4 {[%emt 0:07:08]} 19. gxf6 {[%emt 0:10:43]} Qxf6 {[%emt 0:00:11]} 20. Nf1 {[%emt 0:06:29]} Rxe1 {[%emt 0:02:30]} 21. Nxe1 {[%emt 0:03:15]} Bh5 {[%emt 0:01:27]} 0-1

[Event "EYCC Open U10 2021"]
[Site "Tornelo"]
[Date "2021.10.15"]
[Round "3.10"]
[White "Yurasov, Matfey"]
[Black "Batalov, Prokhor"]
[Result "1-0"]
[ECO "E04"]
[WhiteElo "1588"]
[BlackElo "1391"]
[Annotator "NA"]
[PlyCount "109"]
[EventDate "2021.10.15"]
[EventType "swiss"]
[EventCountry "NET"]
[SourceTitle "playchess.com"]
[Source "ChessBase"]
[SourceQuality "1"]
[TimeControl "5400+30"]

1. d4 {[%emt 0:00:30]} d5 {[%emt 0:00:35]} 2. c4 {[%emt 0:00:17]} c6 {[%emt 0:00:04]} 3. Nc3 {[%emt 0:00:51]} Nf6 {[%emt 0:00:06]} 4. Nf3 {[%emt 0:01:44]} dxc4 {[%emt 0:00:10]} 5. g3 {[%emt 0:00:46]} b5 {[%emt 0:02:11]} 6. Bg2 {[%emt 0:00:43]} Bb7 {[%emt 0:00:32]} 7. Ne5 {[%emt 0:00:42]} a6 {[%emt 0:01:12]} 8. O-O {[%emt 0:01:40]} e6 {[%emt 0:02:27]} 9. a4 {[%emt 0:01:18]} Nd5 {[%emt 0:02:25]} 10. Bxd5 {[%emt 0:02:42]} exd5 {[%emt 0:00:34]} 11. e4 {[%emt 0:00:13]} b4 {[%emt 0:01:35]} 12. Ne2 {[%emt 0:01:10]} Be7 {[%emt 0:04:32]} 13. Nf4 {[%emt 0:01:03]} O-O {[%emt 0:02:09]} 14. exd5 {[%emt 0:00:59]} cxd5 {[%emt 0:00:09]} 15. Qg4 {[%emt 0:00:51]} Qc8 {[%emt 0:13:05]} 16. Qf3 {[%emt 0:02:54]} Nd7 {[%emt 0:02:33]} 17. Ng4 {[%emt 0:03:40]} Qc6 {[%emt 0:05:01]} 18. Ne3 {[%emt 0:03:22]} Nf6 {[%emt 0:01:33]} 19. Nf5 {[%emt 0:01:18]} Qd7 {[%emt 0:00:55]} 20. Ng2 {[%emt 0:01:52]} Rfe8 {[%emt 0:07:01]} 21. Bg5 {[%emt 0:02:05]} Ne4 {[%emt 0:08:24]} 22. Bxe7 {[%emt 0:00:48]} Rxe7 {[%emt 0:01:59]} 23. Nxe7+ {[%emt 0:01:03]} Qxe7 {[%emt 0:00:06]} 24. Qe3 {[%emt 0:01:10]} Qg5 {[%emt 0:01:10]} 25. Nf4 {[%emt 0:01:22]} Re8 {[%emt 0:02:24]} 26. Rfe1 {[%emt 0:01:14]} Bc6 {[%emt 0:00:44]} 27. f3 {[%emt 0:00:38]} Nd6 {[%emt 0:00:26]} 28. Qf2 {[%emt 0:02:44]} Rc8 {[%emt 0:09:26]} 29. Re5 {[%emt 0:00:31]} Qf6 {[%emt 0:00:15]} 30. Nxd5 {[%emt 0:00:40]} Bxd5 {[%emt 0:00:08]} 31. Rxd5 {[%emt 0:00:07]} Nb7 {[%emt 0:01:31]} 32. Re5 {[%emt 0:02:09]} c3 {[%emt 0:02:57]} 33. bxc3 {[%emt 0:01:01]} bxc3 {[%emt 0:00:09]} 34. Rc1 {[%emt 0:01:31]} Qc6 {[%emt 0:01:56]} 35. a5 {[%emt 0:03:55]} Qa4 {[%emt 0:00:22]} 36. Kg2 {[%emt 0:04:09]} Nxa5 {[%emt 0:01:03]} 37. Qe3 {[%emt 0:03:21]} c2 {[%emt 0:14:20]} 38. Rc5 {[%emt 0:00:54]} Re8 {[%emt 0:00:34]} 39. Rxa5 {[%emt 0:00:07]} Qd7 {[%emt 0:02:26]} 40. Re5 {[%emt 0:00:27]} Rc8 {[%emt 0:00:16]} 41. Rc5 {[%emt 0:00:23]} Re8 {[%emt 0:00:14]} 42. Qf2 {[%emt 0:00:03]} h5 {[%emt 0:00:31]} 43. R1xc2 {[%emt 0:00:04]} h4 {[%emt 0:00:05]} 44. g4 {[%emt 0:00:14]} g6 {[%emt 0:00:22]} 45. Qxh4 {[%emt 0:00:18]} Kg7 {[%emt 0:00:21]} 46. Rc6 {[%emt 0:00:22]} Qxd4 {[%emt 0:00:15]} 47. Qf2 {[%emt 0:00:24]} Qf4 {[%emt 0:00:25]} 48. R2c4 {[%emt 0:00:07]} Qh6 {[%emt 0:00:11]} 49. Re4 {[%emt 0:00:09]} Rd8 {[%emt 0:00:08]} 50. Qb2+ {[%emt 0:01:02]} Kh7 {[%emt 0:00:26]} 51. Rd4 {[%emt 0:00:04]} Re8 {[%emt 0:00:19]} 52. Rd7 {[%emt 0:00:08]} Qf4 {[%emt 0:00:30]} 53. Rf6 {[%emt 0:00:52]} Re2+ {[%emt 0:00:11]} 54. Qxe2 {[%emt 0:00:05]} Qxf6 {[%emt 0:00:04]} 55. Qe7 {[%emt 0:00:07]} 1-0

[Event "EYCC Open U10 2021"]
[Site "Tornelo"]
[Date "2021.10.15"]
[Round "3.11"]
[White "Karimli, Yusif"]
[Black "Daniel, Raja.N"]
[Result "1-0"]
[ECO "B13"]
[WhiteElo "1571"]
[BlackElo "1713"]
[Annotator "NA"]
[PlyCount "75"]
[EventDate "2021.10.15"]
[EventType "swiss"]
[EventCountry "NET"]
[SourceTitle "playchess.com"]
[Source "ChessBase"]
[SourceQuality "1"]
[TimeControl "5400+30"]

1. d4 {[%emt 0:00:30]} d5 {[%emt 0:00:36]} 2. Bf4 {[%emt 0:00:03]} Bf5 {[%emt 0:00:18]} 3. e3 {[%emt 0:00:06]} c5 {[%emt 0:01:16]} 4. c3 {[%emt 0:00:15]} Nc6 {[%emt 0:01:01]} 5. Nf3 {[%emt 0:00:16]} cxd4 {[%emt 0:00:39]} 6. exd4 {[%emt 0:00:10]} Nf6 {[%emt 0:00:42]} 7. Nbd2 {[%emt 0:00:17]} h6 {[%emt 0:01:16]} 8. Be2 {[%emt 0:00:43]} e6 {[%emt 0:00:50]} 9. O-O {[%emt 0:01:28]} Bd6 {[%emt 0:02:34]} 10. Bxd6 {[%emt 0:00:46]} Qxd6 {[%emt 0:00:08]} 11. Qb3 {[%emt 0:01:31]} O-O {[%emt 0:01:05]} 12. Rfe1 {[%emt 0:01:29]} b6 {[%emt 0:02:36]} 13. Rac1 {[%emt 0:00:45]} Qd7 {[%emt 0:05:45]} 14. Qa4 {[%emt 0:00:41]} Rfc8 {[%emt 0:05:52]} 15. Red1 {[%emt 0:03:07]} a6 {[%emt 0:02:40]} 16. a3 {[%emt 0:06:20]} b5 {[%emt 0:02:20]} 17. Qb3 {[%emt 0:00:05]} Na5 {[%emt 0:00:57]} 18. Qa2 {[%emt 0:00:13]} Nc4 {[%emt 0:02:17]} 19. b3 {[%emt 0:00:34]} Nxd2 {[%emt 0:00:52]} 20. Qxd2 {[%emt 0:00:46]} Ne4 {[%emt 0:02:06]} 21. Qe3 {[%emt 0:00:07]} f6 {[%emt 0:00:45]} 22. c4 {[%emt 0:00:21]} bxc4 {[%emt 0:02:46]} 23. bxc4 {[%emt 0:00:04]} dxc4 {[%emt 0:01:39]} 24. Bxc4 {[%emt 0:00:36]} Nd6 {[%emt 0:04:21]} 25. Ba2 {[%emt 0:00:27]} Kh8 {[%emt 0:02:22]} 26. h3 {[%emt 0:01:54]} Rxc1 {[%emt 0:01:39]} 27. Rxc1 {[%emt 0:00:15]} Rc8 {[%emt 0:00:58]} 28. Nh4 {[%emt 0:03:56]} Rxc1+ {[%emt 0:08:22]} 29. Qxc1 {[%emt 0:00:03]} Be4 {[%emt 0:01:18]} 30. Qf4 {[%emt 0:04:25]} Qe7 {[%emt 0:05:07]} 31. Qxe4 {[%emt 0:00:06]} Nxe4 {[%emt 0:01:54]} 32. Ng6+ {[%emt 0:00:04]} Kg8 {[%emt 0:00:02]} 33. Nxe7+ {[%emt 0:00:02]} Kf7 {[%emt 0:00:13]} 34. Nc6 {[%emt 0:00:03]} Nc3 {[%emt 0:00:10]} 35. Bc4 {[%emt 0:00:08]} Nb1 {[%emt 0:00:22]} 36. a4 {[%emt 0:00:11]} a5 {[%emt 0:00:24]} 37. Nxa5 {[%emt 0:00:10]} Nc3 {[%emt 0:00:03]} 38. Bb5 {[%emt 0:00:52]} 1-0

[Event "EYCC Open U10 2021"]
[Site "Tornelo"]
[Date "2021.10.15"]
[Round "3.12"]
[White "Karpenko, Anton"]
[Black "Bara, Jan"]
[Result "1-0"]
[ECO "E65"]
[WhiteElo "1634"]
[BlackElo "1413"]
[Annotator "NA"]
[PlyCount "67"]
[EventDate "2021.10.15"]
[EventType "swiss"]
[EventCountry "NET"]
[SourceTitle "playchess.com"]
[Source "ChessBase"]
[SourceQuality "1"]
[TimeControl "5400+30"]

1. d4 {[%emt 0:00:30]} Nf6 {[%emt 0:00:43]} 2. c4 {[%emt 0:00:04]} g6 {[%emt 0:00:12]} 3. g3 {[%emt 0:00:03]} Bg7 {[%emt 0:00:04]} 4. Bg2 {[%emt 0:00:04]} O-O {[%emt 0:00:08]} 5. Nc3 {[%emt 0:00:03]} d6 {[%emt 0:00:07]} 6. Nf3 {[%emt 0:00:02]} Nbd7 {[%emt 0:00:30]} 7. O-O {[%emt 0:00:06]} c5 {[%emt 0:00:26]} 8. d5 {[%emt 0:00:05]} Nb6 {[%emt 0:00:14]} 9. Qd3 {[%emt 0:00:57]} a6 {[%emt 0:05:31]} 10. a4 {[%emt 0:01:25]} Rb8 {[%emt 0:05:08]} 11. a5 {[%emt 0:00:54]} Na8 {[%emt 0:01:10]} 12. e4 {[%emt 0:04:04]} Nc7 {[%emt 0:01:32]} 13. Re1 {[%emt 0:09:13]} Re8 {[%emt 0:06:20]} 14. e5 {[%emt 0:02:40]} Bf5 {[%emt 0:01:25]} 15. Qf1 {[%emt 0:00:24]} dxe5 {[%emt 0:01:28]} 16. Nxe5 {[%emt 0:00:27]} e6 {[%emt 0:04:24]} 17. Bf4 {[%emt 0:12:07]} Nh5 {[%emt 0:03:15]} 18. d6 {[%emt 0:07:11]} Qxd6 {[%emt 0:08:15]} 19. Rad1 {[%emt 0:01:01]} Qe7 {[%emt 0:10:01]} 20. Rd7 {[%emt 0:00:39]} Qf6 {[%emt 0:04:18]} 21. Rxc7 {[%emt 0:01:13]} Nxf4 {[%emt 0:00:31]} 22. gxf4 {[%emt 0:00:31]} Qh4 {[%emt 0:01:37]} 23. Ne2 {[%emt 0:01:09]} Bxe5 {[%emt 0:04:46]} 24. fxe5 {[%emt 0:00:05]} Qxc4 {[%emt 0:03:34]} 25. Rc1 {[%emt 0:00:08]} Qb5 {[%emt 0:01:55]} 26. R1xc5 {[%emt 0:00:26]} Qxb2 {[%emt 0:00:13]} 27. Ng3 {[%emt 0:00:34]} b5 {[%emt 0:04:29]} 28. axb6 {[%emt 0:05:01]} Rxb6 {[%emt 0:02:02]} 29. Qc1 {[%emt 0:02:36]} Qa2 {[%emt 0:03:28]} 30. Qg5 {[%emt 0:02:13]} Rb5 {[%emt 0:02:17]} 31. Qf6 {[%emt 0:04:45]} Rb1+ {[%emt 0:03:12]} 32. Bf1 {[%emt 0:00:08]} Rf8 {[%emt 0:00:19]} 33. Rxf7 {[%emt 0:00:07]} Rxf1+ {[%emt 0:01:22]} 34. Nxf1 {[%emt 0:00:18]} 1-0

[Event "EYCC Open U10 2021"]
[Site "Tornelo"]
[Date "2021.10.15"]
[Round "4.1"]
[White "Demchenko, Maksim Dm"]
[Black "Besou, Hussain"]
[Result "1-0"]
[ECO "B95"]
[WhiteElo "1615"]
[BlackElo "1995"]
[Annotator "ChessBase"]
[PlyCount "53"]
[EventDate "2021.10.15"]
[EventType "swiss"]
[EventCountry "NET"]
[SourceTitle "playchess.com"]
[Source "ChessBase"]
[SourceQuality "1"]
[TimeControl "5400+30"]

1. e4 {[%emt 0:00:30]} c5 {[%emt 0:00:35]} 2. Nf3 {[%emt 0:00:03]} d6 {[%emt 0:00:17]} 3. d4 {[%emt 0:00:06]} cxd4 {[%emt 0:00:14]} 4. Nxd4 {[%emt 0:00:02]} Nf6 {[%emt 0:00:03]} 5. Nc3 {[%emt 0:00:04]} a6 {[%emt 0:00:03]} 6. Bg5 {[%emt 0:00:23]} e6 {[%emt 0:00:06]} 7. Qd3 {[%emt 0:01:07]} Be7 {[%emt 0:01:40]} 8. O-O-O {[%emt 0:00:42]} h6 {[%emt 0:02:57]} 9. Bh4 {[%emt 0:06:52]} Nbd7 {[%emt 0:01:34]} 10. f4 {[%emt 0:12:20]} g5 {[%emt 0:03:22]} 11. fxg5 {[%emt 0:00:26]} Ne5 {[%emt 0:00:16]} 12. Qd2 {[%emt 0:02:12]} Nfg4 {[%emt 0:00:27]} 13. h3 {[%emt 0:14:52]} hxg5 {[%emt 0:00:30]} 14. Bg3 {[%emt 0:00:08]} Nf6 {[%emt 0:02:35]} 15. Be2 {[%emt 0:01:40]} Nfd7 {[%emt 0:08:51]} 16. Kb1 {[%emt 0:00:55]} b5 {[%emt 0:13:18]} 17. Rhf1 {[%emt 0:22:12]} Bb7 {[%emt 0:02:29]} 18. a3 {[%emt 0:03:02]} Rc8 {[%emt 0:02:41]} 19. Nf3 {[%emt 0:04:58]} Nxf3 {[%emt 0:25:31]} 20. Bxf3 {[%emt 0:00:08]} Ne5 {[%emt 0:00:11]} 21. Bxe5 {[%emt 0:00:07]} dxe5 {[%emt 0:00:04]} 22. Qf2 {[%emt 0:01:17]} Qc7 {[%emt 0:00:45]} 23. Bh5 {[%emt 0:01:36]} O-O {[%emt 0:01:28]} 24. Bxf7+ {[%emt 0:05:06]} Kg7 {[%emt 0:00:21]} 25. Qf3 {[%emt 0:00:04]} Bd8 {[%emt 0:02:55]} 26. Rxd8 {[%emt 0:00:44]} Rcxd8 {[%emt 0:00:44]} 27. Qf6+ {[%emt 0:00:11]} 1-0

[Event "EYCC Open U10 2021"]
[Site "Tornelo"]
[Date "2021.10.15"]
[Round "4.2"]
[White "Negrean, Andrei"]
[Black "Yurasov, Matfey"]
[Result "1-0"]
[ECO "B59"]
[WhiteElo "1847"]
[BlackElo "1588"]
[Annotator "NA"]
[PlyCount "135"]
[EventDate "2021.10.15"]
[EventType "swiss"]
[EventCountry "NET"]
[SourceTitle "playchess.com"]
[Source "ChessBase"]
[SourceQuality "1"]
[TimeControl "5400+30"]

1. e4 {[%emt 0:00:30]} c5 {[%emt 0:00:40]} 2. Nf3 {[%emt 0:00:19]} Nc6 {[%emt 0:00:13]} 3. d4 {[%emt 0:00:24]} cxd4 {[%emt 0:00:36]} 4. Nxd4 {[%emt 0:00:14]} Nf6 {[%emt 0:03:37]} 5. Nc3 {[%emt 0:00:46]} d6 {[%emt 0:00:28]} 6. Be2 {[%emt 0:01:16]} e5 {[%emt 0:00:23]} 7. Nb3 {[%emt 0:00:37]} Be7 {[%emt 0:02:27]} 8. O-O {[%emt 0:01:33]} h6 {[%emt 0:01:10]} 9. f4 {[%emt 0:10:59]} O-O {[%emt 0:14:06]} 10. Kh1 {[%emt 0:01:46]} a5 {[%emt 0:00:50]} 11. a4 {[%emt 0:04:58]} Nb4 {[%emt 0:01:54]} 12. Bf3 {[%emt 0:13:54]} Be6 {[%emt 0:02:10]} 13. Qe2 {[%emt 0:08:18]} Rc8 {[%emt 0:01:22]} 14. Rd1 {[%emt 0:01:29]} Qc7 {[%emt 0:01:08]} 15. f5 {[%emt 0:08:07]} Bc4 {[%emt 0:00:32]} 16. Qf2 {[%emt 0:01:03]} b6 {[%emt 0:16:24]} 17. Be3 {[%emt 0:09:27]} Rb8 {[%emt 0:00:54]} 18. g4 {[%emt 0:15:57]} Nh7 {[%emt 0:01:11]} 19. Rac1 {[%emt 0:02:31]} Bg5 {[%emt 0:02:00]} 20. Bxg5 {[%emt 0:02:04]} Nxg5 {[%emt 0:00:22]} 21. Bg2 {[%emt 0:01:10]} f6 {[%emt 0:01:04]} 22. Nd2 {[%emt 0:04:20]} Ba6 {[%emt 0:00:16]} 23. Nf1 {[%emt 0:01:55]} Bb7 {[%emt 0:02:30]} 24. Nb5 {[%emt 0:01:46]} Qc5 {[%emt 0:00:39]} 25. Qxc5 {[%emt 0:02:03]} dxc5 {[%emt 0:00:04]} 26. Nd6 {[%emt 0:04:13]} Ba6 {[%emt 0:03:06]} 27. h4 {[%emt 0:01:43]} Nf7 {[%emt 0:01:13]} 28. Nb5 {[%emt 0:00:30]} Nc6 {[%emt 0:06:55]} 29. Ne3 {[%emt 0:00:33]} Bxb5 {[%emt 0:04:15]} 30. axb5 {[%emt 0:00:05]} Nd4 {[%emt 0:00:05]} 31. Bf1 {[%emt 0:00:16]} Rfd8 {[%emt 0:01:21]} 32. Nd5 {[%emt 0:00:31]} Kf8 {[%emt 0:02:56]} 33. c3 {[%emt 0:00:42]} Nb3 {[%emt 0:00:23]} 34. Rb1 {[%emt 0:00:52]} Nd6 {[%emt 0:00:31]} 35. Nc7 {[%emt 0:00:31]} Rd7 {[%emt 0:01:14]} 36. Bc4 {[%emt 0:00:31]} a4 {[%emt 0:00:52]} 37. Be6 {[%emt 0:00:29]} Rxc7 {[%emt 0:00:34]} 38. Rxd6 {[%emt 0:00:07]} c4 {[%emt 0:00:30]} 39. Rc6 {[%emt 0:00:32]} Rbb7 {[%emt 0:00:29]} 40. Rd1 {[%emt 0:00:41]} Rxc6 {[%emt 0:04:06]} 41. bxc6 {[%emt 0:00:07]} Rc7 {[%emt 0:00:21]} 42. Bxc4 {[%emt 0:00:49]} Rxc6 {[%emt 0:00:25]} 43. Bb5 {[%emt 0:00:23]} Rc7 {[%emt 0:00:09]} 44. Bxa4 {[%emt 0:00:33]} Nc5 {[%emt 0:00:03]} 45. Bc2 {[%emt 0:00:11]} Ke7 {[%emt 0:00:02]} 46. Kg2 {[%emt 0:00:10]} Ra7 {[%emt 0:00:06]} 47. Kf3 {[%emt 0:00:31]} Ra2 {[%emt 0:00:03]} 48. Rb1 {[%emt 0:00:09]} Kf8 {[%emt 0:02:21]} 49. g5 {[%emt 0:00:28]} hxg5 {[%emt 0:03:22]} 50. hxg5 {[%emt 0:00:05]} Kf7 {[%emt 0:00:05]} 51. g6+ {[%emt 0:00:58]} Ke7 {[%emt 0:00:31]} 52. Ke3 {[%emt 0:00:31]} Kf8 {[%emt 0:00:34]} 53. Kd2 {[%emt 0:00:41]} Ke7 {[%emt 0:01:13]} 54. Rh1 {[%emt 0:01:30]} Ra7 {[%emt 0:02:28]} 55. b4 {[%emt 0:00:30]} Na6 {[%emt 0:00:09]} 56. Rh7 {[%emt 0:00:33]} Kd6 {[%emt 0:01:08]} 57. Rh8 {[%emt 0:00:31]} Rd7 {[%emt 0:00:42]} 58. Bb3 {[%emt 0:00:30]} Nc7 {[%emt 0:00:42]} 59. Rg8 {[%emt 0:00:26]} Ke7+ {[%emt 0:00:36]} 60. Ke3 {[%emt 0:00:18]} Ne8 {[%emt 0:00:11]} 61. Rxe8+ {[%emt 0:00:46]} Kxe8 {[%emt 0:00:07]} 62. Ba4 {[%emt 0:00:02]} Ke7 {[%emt 0:00:03]} 63. Bxd7 {[%emt 0:00:05]} Kxd7 {[%emt 0:00:05]} 64. Kd3 {[%emt 0:00:18]} Kc6 {[%emt 0:00:03]} 65. Kc4 {[%emt 0:00:19]} b5+ {[%emt 0:00:05]} 66. Kb3 {[%emt 0:00:03]} Kb6 {[%emt 0:00:02]} 67. c4 {[%emt 0:00:02]} Kc6 {[%emt 0:00:02]} 68. cxb5+ {[%emt 0:00:06]} 1-0

[Event "EYCC Open U10 2021"]
[Site "Tornelo"]
[Date "2021.10.15"]
[Round "4.3"]
[White "Petukhov, Dmitriy"]
[Black "Karimli, Yusif"]
[Result "1-0"]
[ECO "D36"]
[WhiteElo "1769"]
[BlackElo "1571"]
[Annotator "NA"]
[PlyCount "149"]
[EventDate "2021.10.15"]
[EventType "swiss"]
[EventCountry "NET"]
[SourceTitle "playchess.com"]
[Source "ChessBase"]
[SourceQuality "1"]
[TimeControl "5400+30"]

1. c4 {[%emt 0:00:30]} e6 {[%emt 0:00:32]} 2. d4 {[%emt 0:00:04]} d5 {[%emt 0:00:03]} 3. cxd5 {[%emt 0:00:04]} exd5 {[%emt 0:00:02]} 4. Nc3 {[%emt 0:00:03]} Nf6 {[%emt 0:00:02]} 5. Nf3 {[%emt 0:00:03]} Be7 {[%emt 0:00:06]} 6. Qc2 {[%emt 0:00:04]} O-O {[%emt 0:00:07]} 7. Bg5 {[%emt 0:00:03]} h6 {[%emt 0:00:04]} 8. Bh4 {[%emt 0:00:04]} c6 {[%emt 0:00:04]} 9. e3 {[%emt 0:00:03]} Be6 {[%emt 0:00:04]} 10. Bd3 {[%emt 0:00:04]} Nbd7 {[%emt 0:00:06]} 11. O-O {[%emt 0:00:10]} Rc8 {[%emt 0:00:05]} 12. Ne2 {[%emt 0:03:12]} c5 {[%emt 0:00:11]} 13. dxc5 {[%emt 0:00:24]} Nxc5 {[%emt 0:00:03]} 14. Qd1 {[%emt 0:00:22]} Nxd3 {[%emt 0:00:18]} 15. Qxd3 {[%emt 0:00:06]} Ne4 {[%emt 0:00:32]} 16. Bxe7 {[%emt 0:00:10]} Qxe7 {[%emt 0:00:03]} 17. Ned4 {[%emt 0:00:24]} Rc5 {[%emt 0:02:11]} 18. Qa3 {[%emt 0:07:13]} a6 {[%emt 0:01:43]} 19. Nb3 {[%emt 0:01:14]} Rc7 {[%emt 0:00:26]} 20. Qxe7 {[%emt 0:00:07]} Rxe7 {[%emt 0:00:02]} 21. Rac1 {[%emt 0:00:10]} f5 {[%emt 0:03:37]} 22. Nfd4 {[%emt 0:03:26]} f4 {[%emt 0:01:15]} 23. f3 {[%emt 0:00:37]} Nd6 {[%emt 0:01:43]} 24. exf4 {[%emt 0:01:13]} Bf5 {[%emt 0:00:57]} 25. Nxf5 {[%emt 0:10:25]} Nxf5 {[%emt 0:00:36]} 26. g3 {[%emt 0:00:39]} Re2 {[%emt 0:00:20]} 27. Rf2 {[%emt 0:00:16]} Rfe8 {[%emt 0:00:05]} 28. Kf1 {[%emt 0:00:59]} R2e7 {[%emt 0:01:38]} 29. Rd2 {[%emt 0:02:57]} h5 {[%emt 0:00:42]} 30. Kf2 {[%emt 0:00:56]} g6 {[%emt 0:01:16]} 31. h4 {[%emt 0:00:53]} d4 {[%emt 0:06:31]} 32. Rcc2 {[%emt 0:08:20]} Rd8 {[%emt 0:08:14]} 33. Rd3 {[%emt 0:01:46]} Kf7 {[%emt 0:03:38]} 34. Rcd2 {[%emt 0:03:28]} Rd6 {[%emt 0:05:14]} 35. g4 {[%emt 0:06:18]} hxg4 {[%emt 0:00:34]} 36. fxg4 {[%emt 0:00:05]} Nh6 {[%emt 0:00:04]} 37. Kf3 {[%emt 0:09:09]} Re1 {[%emt 0:00:28]} 38. Rxd4 {[%emt 0:02:38]} Rxd4 {[%emt 0:01:47]} 39. Rxd4 {[%emt 0:07:11]} Rf1+ {[%emt 0:01:43]} 40. Kg2 {[%emt 0:00:06]} Rb1 {[%emt 0:00:07]} 41. Rd7+ {[%emt 0:00:05]} Kf8 {[%emt 0:00:05]} 42. Rxb7 {[%emt 0:00:09]} Rxb2+ {[%emt 0:00:20]} 43. Kg3 {[%emt 0:00:05]} Rxa2 {[%emt 0:00:14]} 44. Nd4 {[%emt 0:02:06]} Kg8 {[%emt 0:04:02]} 45. Nf3 {[%emt 0:01:26]} a5 {[%emt 0:00:22]} 46. Rb5 {[%emt 0:02:09]} a4 {[%emt 0:01:32]} 47. Rg5 {[%emt 0:00:12]} Kh7 {[%emt 0:00:43]} 48. h5 {[%emt 0:00:36]} gxh5 {[%emt 0:00:53]} 49. Rxh5 {[%emt 0:00:05]} Kg7 {[%emt 0:01:42]} 50. Ra5 {[%emt 0:00:09]} Ra3 {[%emt 0:00:36]} 51. g5 {[%emt 0:00:14]} Nf7 {[%emt 0:01:20]} 52. Kg4 {[%emt 0:00:52]} Nd6 {[%emt 0:01:34]} 53. Ra7+ {[%emt 0:00:45]} Kg8 {[%emt 0:00:45]} 54. Ra6 {[%emt 0:00:30]} Nc4 {[%emt 0:01:20]} 55. Nd4 {[%emt 0:01:08]} Ne3+ {[%emt 0:02:29]} 56. Kh5 {[%emt 0:00:24]} Nd5 {[%emt 0:00:17]} 57. f5 {[%emt 0:03:35]} Nf4+ {[%emt 0:03:36]} 58. Kg4 {[%emt 0:00:43]} Nd5 {[%emt 0:00:09]} 59. f6 {[%emt 0:01:00]} Ra1 {[%emt 0:00:47]} 60. Nf3 {[%emt 0:05:50]} Rf1 {[%emt 0:09:59]} 61. Rxa4 {[%emt 0:01:12]} Ne3+ {[%emt 0:00:11]} 62. Kg3 {[%emt 0:00:33]} Nf5+ {[%emt 0:00:38]} 63. Kf4 {[%emt 0:00:49]} Nh4 {[%emt 0:00:22]} 64. Ra3 {[%emt 0:00:30]} Kf7 {[%emt 0:00:32]} 65. Kg4 {[%emt 0:00:17]} Nxf3 {[%emt 0:00:31]} 66. Rxf3 {[%emt 0:00:08]} Rg1+ {[%emt 0:00:44]} 67. Kf5 {[%emt 0:00:17]} Rg2 {[%emt 0:00:07]} 68. Rf4 {[%emt 0:02:51]} Rg1 {[%emt 0:00:34]} 69. Rf2 {[%emt 0:00:53]} Rg3 {[%emt 0:00:09]} 70. Rh2 {[%emt 0:00:09]} Rf3+ {[%emt 0:00:55]} 71. Kg4 {[%emt 0:00:36]} Rf1 {[%emt 0:00:30]} 72. Rh7+ {[%emt 0:00:06]} Kf8 {[%emt 0:00:33]} 73. Kh5 {[%emt 0:00:25]} Kg8 {[%emt 0:00:31]} 74. Kg6 {[%emt 0:00:25]} Rf2 {[%emt 0:00:43]} 75. Ra7 {[%emt 0:00:10]} 1-0